[Event "17th Caspian Cup-Masters 2019"]
[Site "Anzali"]
[Date "2019.02.19"]
[Round "9.9"]
[White "Li, Bo"]
[Black "Moradi, Behrooz"]
[Result "1/2-1/2"]
[ECO "E34"]
[WhiteElo "2325"]
[BlackElo "2178"]
[Annotator "NA"]
[PlyCount "122"]
[EventDate "2019.02.12"]
[EventType "swiss"]
[EventRounds "9"]
[EventCountry "IRI"]
[SourceTitle "playchess.com"]
[Source "ChessBase"]
[SourceQuality "1"]
[TimeControl "5400+30"]

1. d4 {[%emt 0:00:00]} Nf6 {[%emt 0:00:00]} 2. c4 {[%emt 0:00:43]} e6 {[%emt 0:00:04]} 3. Nc3 {[%emt 0:01:26]} Bb4 {[%emt 0:00:08]} 4. Qc2 {[%emt 0:02:32]} d5 {[%emt 0:01:39]} 5. cxd5 {[%emt 0:07:01]} Qxd5 {[%emt 0:00:48]} 6. Nf3 {[%emt 0:03:52] LiveBook: 564 Games} c5 {[%emt 0:07:45]} 7. Bd2 {[%emt 0:06:03]} Bxc3 {[%emt 0:00:26]} 8. Bxc3 {[%emt 0:03:19]} O-O {[%emt 0:01:28] E34: Nimzo-Indian: Classical: 4...d5} (8... Nc6 9. dxc5 Qxc5 10. Rc1 O-O 11. e3 Rd8 12. b4 Nxb4 13. Qb2 Nfd5 14. a3 Nc6 15. Bxg7 Qa5+ 16. Bc3 Nxc3 17. Rxc3 {0-1 (49) Beliavsky,A (2651)-Lenic,L (2637) Slovenia 2013}) 9. e3 {[%emt 0:05:14]} b6 {[%emt 0:01:58]} 10. Bd3 $146 {[%emt 0:06:13]} ({Predecessor:} 10. dxc5 Qxc5 11. Bd3 Bb7 12. O-O Nc6 13. Qa4 Rad8 14. Rfd1 e5 15. Ng5 Qe7 16. Ne4 Nd5 17. Bc4 Nxc3 18. Nxc3 Rxd1+ 19. Rxd1 Rd8 20. Rxd8+ Qxd8 21. Bd5 Qd6 22. e4 g6 23. h3 {½-½ (23) Kowalski,I (2294)-Nothnagel,M (2338) Riga 2018}) 10... Ba6 {[%emt 0:01:54]} 11. Bxa6 {[%emt 0:11:49]} Nxa6 {[%emt 0:00:08]} 12. O-O {[%emt 0:02:28]} cxd4 {[%emt 0:11:49]} 13. Bxd4 {[%emt 0:01:16]} Rfc8 {[%emt 0:04:15]} 14. Qe2 {[%emt 0:02:02]} Qc4 {[%emt 0:01:14]} 15. Qxc4 {[%emt 0:04:55]} Rxc4 {[%emt 0:00:06]} 16. Rfc1 {[%emt 0:04:33]} Rac8 {[%emt 0:03:14]} 17. Rxc4 {[%emt 0:00:18]} Rxc4 $11 {[%emt 0:00:05]} 18. b3 {[%emt 0:04:31]} Rc2 {[%emt 0:04:30]} 19. Bxf6 {[%emt 0:01:50]} gxf6 {[%emt 0:00:06]} 20. Nd4 {[%emt 0:00:51]} Rb2 {[%emt 0:00:51]} 21. Nc6 {[%emt 0:00:37]} f5 {[%emt 0:13:53]} 22. h3 {[%emt 0:02:04]} Kg7 {[%emt 0:01:44]} 23. g4 {[%emt 0:07:42]} Kf6 {[%emt 0:02:44]} 24. gxf5 {[%emt 0:02:00]} Kxf5 {[%emt 0:00:23]} 25. Rd1 {[%emt 0:06:21]} Nc5 {[%emt 0:01:59]} 26. b4 {[%emt 0:00:48]} Ne4 {[%emt 0:01:14]} 27. Rd7 {[%emt 0:00:47]} Kf6 {[%emt 0:06:33]} 28. f4 {[%emt 0:04:34]} Rxa2 {[%emt 0:08:20]} 29. Ne5 {[%emt 0:01:10]} Kg7 {[%emt 0:01:22]} 30. Nxf7 {[%emt 0:01:14]} Nf6 {[%emt 0:01:35]} 31. Rb7 {[%emt 0:00:24]} Nd5 {[%emt 0:02:11]} 32. Ne5+ {[%emt 0:01:57]} Kh6 {[%emt 0:01:24]} 33. Nc6 {[%emt 0:01:54]} a5 {[%emt 0:06:26]} 34. bxa5 {[%emt 0:00:58]} bxa5 {[%emt 0:00:06]} 35. Nd4 {[%emt 0:00:56]} a4 {[%emt 0:01:41]} 36. Nxe6 {[%emt 0:00:14]} Nxe3 {[%emt 0:01:34]} 37. Ra7 {[%emt 0:00:59]} a3 {[%emt 0:00:42]} 38. Nf8 {[%emt 0:00:18]} Rg2+ {[%emt 0:01:48]} 39. Kh1 {[%emt 0:00:01]} Rg7 {[%emt 0:00:42]} 40. Rxa3 {[%emt 0:00:03]} Rf7 {[%emt 0:04:36]} 41. Ne6 {[%emt 0:01:37]} Nd5 {[%emt 0:00:44]} 42. Ra4 {[%emt 0:00:20]} Rf6 {[%emt 0:00:39]} 43. Re4 {[%emt 0:00:23]} Kg6 {[%emt 0:02:34]} 44. Kh2 {[%emt 0:00:50]} Kf7 {[%emt 0:00:52]} 45. Nd8+ {[%emt 0:00:14]} Kg6 {[%emt 0:00:16]} 46. Kg3 {[%emt 0:00:14]} Rd6 {[%emt 0:00:40]} 47. Ne6 {[%emt 0:01:01]} Nf6 {[%emt 0:01:50]} 48. Re3 {[%emt 0:00:25]} Nh5+ {[%emt 0:01:35]} 49. Kf3 {[%emt 0:00:40]} Nf6 {[%emt 0:01:02]} 50. Ng5 {[%emt 0:01:17]} Ra6 {[%emt 0:00:36]} 51. Ne6 {[%emt 0:01:01]} Nd5 {[%emt 0:00:35]} 52. Re5 {[%emt 0:00:32]} Ra3+ {[%emt 0:00:35]} 53. Kg2 {[%emt 0:00:33]} Ne3+ {[%emt 0:00:29]} 54. Kf2 {[%emt 0:00:14]} Nc4 {[%emt 0:00:33]} 55. Rc5 {[%emt 0:00:47]} Nd6 {[%emt 0:00:22]} 56. Ng5 {[%emt 0:01:09]} h6 {[%emt 0:00:20]} 57. Rd5 {[%emt 0:00:27]} hxg5 {[%emt 0:00:26]} 58. Rxd6+ {[%emt 0:00:11]} Kf5 {[%emt 0:00:10]} 59. fxg5 {[%emt 0:00:13]} Kxg5 {[%emt 0:00:30]} 60. Kg2 {[%emt 0:00:17]} Ra2+ {[%emt 0:00:08]} 61. Kf3 {[%emt 0:00:05]} Ra3+ {[%emt 0:00:06]} 1/2-1/2

[Event "17th Caspian Cup-Masters 2019"]
[Site "Anzali"]
[Date "2019.02.19"]
[Round "9.10"]
[White "Aminikiasari, Amer"]
[Black "Babaniya, Benyamin"]
[Result "0-1"]
[ECO "A01"]
[WhiteElo "2318"]
[BlackElo "2184"]
[Annotator "ChessBase"]
[PlyCount "96"]
[EventDate "2019.02.12"]
[EventType "swiss"]
[EventRounds "9"]
[EventCountry "IRI"]
[SourceTitle "playchess.com"]
[Source "ChessBase"]
[SourceQuality "1"]
[TimeControl "5400+30"]

1. b3 {[%emt 0:00:00]} d5 {[%emt 0:07:06]} 2. Bb2 {[%emt 0:00:00]} Nf6 {[%emt 0:00:24]} 3. Nf3 {[%emt 0:00:37]} Bf5 {[%emt 0:01:36]} 4. e3 {[%emt 0:01:02]} Nbd7 {[%emt 0:01:58]} 5. Be2 {[%emt 0:03:00]} e6 {[%emt 0:02:12]} 6. Nh4 {[%emt 0:03:06]} Bg6 {[%emt 0:02:18]} 7. Nxg6 {[%emt 0:09:25]} hxg6 {[%emt 0:00:43]} 8. d3 {[%emt 0:00:23]} Bd6 {[%emt 0:01:36]} 9. Nd2 {[%emt 0:01:42]} Qe7 {[%emt 0:01:31]} 10. c4 {[%emt 0:03:18]} c6 {[%emt 0:05:52]} 11. Qc2 {[%emt 0:02:54]} a5 {[%emt 0:04:11]} 12. a3 {[%emt 0:01:49]} g5 {[%emt 0:07:26]} 13. d4 {[%emt 0:03:01]} Nf8 {[%emt 0:11:27]} 14. c5 {[%emt 0:03:06]} Bc7 {[%emt 0:07:51]} 15. O-O-O {[%emt 0:01:24]} e5 {[%emt 0:06:33]} 16. h3 {[%emt 0:04:50]} exd4 {[%emt 0:10:49]} 17. exd4 {[%emt 0:00:38]} Ne6 {[%emt 0:00:20]} 18. Rhe1 {[%emt 0:03:28]} O-O {[%emt 0:04:44]} 19. Bd3 {[%emt 0:02:17]} g6 {[%emt 0:01:40]} 20. Nf3 {[%emt 0:02:51]} Kg7 {[%emt 0:00:32]} 21. g3 {[%emt 0:01:39]} Nd7 {[%emt 0:00:43]} 22. Kb1 {[%emt 0:02:10]} Rae8 {[%emt 0:00:54]} 23. h4 {[%emt 0:05:08]} g4 {[%emt 0:02:53]} 24. Ng5 {[%emt 0:05:09]} Qf6 {[%emt 0:00:51]} 25. Rh1 {[%emt 0:08:14]} Rh8 {[%emt 0:01:11]} 26. Nxe6+ {[%emt 0:03:13]} Rxe6 {[%emt 0:01:20]} 27. b4 {[%emt 0:02:34]} axb4 {[%emt 0:00:47]} 28. axb4 {[%emt 0:00:02]} Qf3 {[%emt 0:00:23]} 29. b5 {[%emt 0:04:14]} Nf6 {[%emt 0:00:55]} 30. bxc6 {[%emt 0:04:21]} bxc6 {[%emt 0:00:21]} 31. Rhe1 {[%emt 0:00:28]} Rhe8 {[%emt 0:00:29]} 32. Rxe6 {[%emt 0:01:46]} Rxe6 {[%emt 0:00:09]} 33. Rd2 {[%emt 0:05:44]} Ba5 {[%emt 0:00:56]} 34. Re2 {[%emt 0:00:33]} Rxe2 {[%emt 0:00:47]} 35. Bxe2 {[%emt 0:05:14]} Qxf2 {[%emt 0:00:15]} 36. Qd3 {[%emt 0:04:07]} Bc7 {[%emt 0:01:21]} 37. h5 {[%emt 0:01:22]} gxh5 {[%emt 0:02:15]} 38. Bd1 {[%emt 0:00:46]} Ne4 {[%emt 0:01:26]} 39. Bc2 {[%emt 0:01:59]} Qf1+ {[%emt 0:00:26]} 40. Qxf1 {[%emt 0:00:40]} Nd2+ {[%emt 0:00:02]} 41. Kc1 {[%emt 0:01:06]} Nxf1 {[%emt 0:00:04]} 42. Ba4 {[%emt 0:00:05]} h4 {[%emt 0:01:20]} 43. Bxc6 {[%emt 0:00:27]} hxg3 {[%emt 0:02:13]} 44. Bxd5 {[%emt 0:00:02]} Bf4+ {[%emt 0:00:09]} 45. Kb1 {[%emt 0:00:57]} Nd2+ {[%emt 0:00:05]} 46. Kc2 {[%emt 0:00:28]} Nf3 {[%emt 0:00:07]} 47. Be4 {[%emt 0:01:36]} g2 {[%emt 0:00:31]} 48. d5+ {[%emt 0:00:17]} Kg8 {[%emt 0:00:20]} 0-1

[Event "17th Caspian Cup-Masters 2019"]
[Site "Anzali"]
[Date "2019.02.19"]
[Round "9.11"]
[White "Atakhan, Abtin"]
[Black "Hakemi, Arman"]
[Result "1-0"]
[ECO "A20"]
[WhiteElo "2179"]
[BlackElo "2317"]
[Annotator "NA"]
[PlyCount "71"]
[EventDate "2019.02.12"]
[EventType "swiss"]
[EventRounds "9"]
[EventCountry "IRI"]
[SourceTitle "playchess.com"]
[Source "ChessBase"]
[SourceQuality "1"]
[TimeControl "5400+30"]

{[%evp 8,70,15,12,24,0,0,0,0,-16,19,3,19,13,22,32767,32767,32767,32767,-31,-22,-31,32767,-33,-55,32767,32767,-58,-58,-69,-25,-21,47,67,89,72,32767,32767,32767,32767,32767,32767,32767,32767,32767,32767,32767,32767,32767,32767,32767,32767,32767,32767,32767,69,115,32767,32767,56,32767,32767,32767,32767,616]} 1. c4 {[%emt 0:00:00]} e5 {[%emt 0:00:00]} 2. g3 {[%emt 0:00:00]} Nf6 {[%emt 0:00:10]} 3. Bg2 {[%emt 0:00:06]} d5 {[%emt 0:00:05]} 4. cxd5 {[%emt 0:00:06]} Nxd5 {[%emt 0:00:04]} 5. Nc3 {[%emt 0:00:08]} Nb6 {[%emt 0:00:05]} 6. Nf3 {[%emt 0:00:15]} Nc6 {[%emt 0:00:06]} 7. O-O {[%emt 0:00:13]} Be7 {[%emt 0:00:05]} 8. Rb1 {[%emt 0:00:03]} a5 {[%emt 0:00:32]} 9. d3 {[%emt 0:00:07]} O-O {[%emt 0:00:06] A29: English Opening: Four Knights Variation with 4 g3} 10. Be3 {[%emt 0:00:02]} Re8 {[%emt 0:00:41] LiveBook: 8 Games} (10... Be6 11. d4 {½-½ (11) Matlakov,M (2700)-Giri,A (2783) St Petersburg 2018}) 11. Rc1 {[%emt 0:00:13]} Bf8 {[%emt 0:00:34]} 12. Na4 {[%emt 0:06:57]} Nd4 {[%emt 0:01:22]} 13. Nc5 {[%emt 0:11:04]} (13. Nxb6 $14 cxb6 14. Nxd4 exd4 15. Bf4) 13... c6 {[%emt 0:01:04]} 14. Re1 {[%emt 0:01:53]} a4 $146 {[%emt 0:10:17]} ({Predecessor:} 14... h6 15. Nb3 Nxf3+ 16. Bxf3 a4 17. Nc5 {0-1 (43) Ahmed,S (2305)-Rahman,S (2188) Dhaka 2018}) 15. Bxd4 {[%emt 0:06:15]} exd4 {[%emt 0:00:09]} 16. Qd2 {[%emt 0:00:14]} g6 {[%emt 0:01:57]} 17. a3 {[%emt 0:12:28]} Bg7 {[%emt 0:07:41]} 18. Rc2 {[%emt 0:03:32]} Nd5 {[%emt 0:01:14]} 19. Rc4 {[%emt 0:00:32]} b5 {[%emt 0:25:58]} (19... Qe7 $11) 20. Rxd4 {[%emt 0:06:03]} Qb6 {[%emt 0:04:13]} 21. Rc1 {[%emt 0:01:44]} Bxd4 {[%emt 0:03:59]} 22. Nxd4 {[%emt 0:00:05]} b4 {[%emt 0:00:45]} 23. Bxd5 {[%emt 0:04:21]} cxd5 {[%emt 0:00:12]} 24. axb4 {[%emt 0:06:26]} Qf6 {[%emt 0:01:41]} 25. Qf4 {[%emt 0:01:11]} Qxf4 {[%emt 0:01:51]} 26. gxf4 {[%emt 0:00:22]} Bh3 {[%emt 0:04:35]} 27. f3 {[%emt 0:02:46]} Kg7 {[%emt 0:00:11]} 28. Kf2 {[%emt 0:01:17]} a3 {[%emt 0:06:58]} 29. bxa3 {[%emt 0:00:20]} Rxa3 {[%emt 0:00:06]} 30. b5 {[%emt 0:04:38]} Rb8 {[%emt 0:00:32]} 31. Na6 {[%emt 0:02:52]} Rb6 {[%emt 0:01:13]} (31... Rc8 $1 $14 32. Rxc8 Bxc8) 32. Nc7 {[%emt 0:00:27]} Be6 {[%emt 0:00:34]} 33. Rc6 {[%emt 0:03:22]} Rxc6 {[%emt 0:00:27]} 34. bxc6 {[%emt 0:00:04]} Kf6 {[%emt 0:01:13]} 35. Ncxe6 {[%emt 0:01:13]} fxe6 $18 {[%emt 0:00:08]} 36. c7 {[%emt 0:00:14]} 1-0

[Event "17th Caspian Cup-Masters 2019"]
[Site "Anzali"]
[Date "2019.02.19"]
[Round "9.12"]
[White "Khademi, Mohammad Miran"]
[Black "Tavoosi Rad, Ramtin"]
[Result "1-0"]
[ECO "B22"]
[WhiteElo "2298"]
[BlackElo "2173"]
[Annotator "NA"]
[PlyCount "97"]
[EventDate "2019.02.12"]
[EventType "swiss"]
[EventRounds "9"]
[EventCountry "IRI"]
[SourceTitle "playchess.com"]
[Source "ChessBase"]
[SourceQuality "1"]
[TimeControl "5400+30"]

1. e4 {[%emt 0:02:10]} c5 {[%emt 0:00:00]} 2. c3 {[%emt 0:00:14]} g6 {[%emt 0:00:00]} 3. Nf3 {[%emt 0:01:39]} Bg7 {[%emt 0:00:10]} 4. Bc4 {[%emt 0:00:26]} Nc6 {[%emt 0:02:30]} 5. h4 {[%emt 0:02:29]} h6 {[%emt 0:02:48]} 6. d4 {[%emt 0:09:07]} cxd4 {[%emt 0:00:45]} 7. Nxd4 {[%emt 0:00:07]} (7. cxd4 $14 d6 8. Nc3) 7... Nf6 {[%emt 0:05:05]} 8. Nxc6 {[%emt 0:01:04]} bxc6 {[%emt 0:03:36]} 9. Bd3 {[%emt 0:02:40]} d5 {[%emt 0:01:25]} 10. Nd2 {[%emt 0:02:34]} O-O {[%emt 0:03:17]} 11. Qc2 {[%emt 0:04:48]} e5 {[%emt 0:02:50]} 12. c4 {[%emt 0:04:42]} Be6 {[%emt 0:01:34]} 13. b3 {[%emt 0:03:39]} dxe4 {[%emt 0:10:21]} 14. Nxe4 {[%emt 0:00:31]} Nxe4 {[%emt 0:00:08]} 15. Bxe4 {[%emt 0:00:05] [#]} f5 {[%emt 0:00:05]} ({Black should play} 15... Qc7 $1 16. g3 Bg4) 16. Bxc6 {[%emt 0:00:36]} Rc8 {[%emt 0:00:09]} 17. Ba4 {[%emt 0:00:26]} Bd5 {[%emt 0:00:47]} ({Black should try} 17... e4 $17 18. Rb1 {[#]} e3 $1 {[%mdl 512]}) 18. Qd2 $2 {[%emt 0:01:28]} (18. Kf1 $11) 18... Bxg2 {[%emt 0:00:41]} 19. Qxd8 {[%emt 0:03:28]} Rfxd8 {[%emt 0:00:10]} ({Not} 19... Rcxd8 20. Rg1 $15) 20. Rg1 {[%emt 0:00:07]} Bf3 {[%emt 0:00:06]} 21. Be3 {[%emt 0:03:56]} (21. Bb2 {was necessary.} Kf7 22. b4) 21... Kh7 {[%emt 0:04:20]} 22. Rb1 $2 {[%emt 0:01:13]} (22. Rc1) 22... Bf8 $19 {[%emt 0:07:03]} 23. Bxa7 {[%emt 0:03:16]} Bb4+ {[%emt 0:00:55]} 24. Kf1 {[%emt 0:00:02]} Rd6 {[%emt 0:16:47]} 25. Rg3 {[%emt 0:09:43]} e4 {[%emt 0:03:30]} 26. Kg1 {[%emt 0:02:34]} Rcd8 {[%emt 0:02:05]} 27. Kh2 {[%emt 0:02:18]} Rd1 {[%emt 0:04:40]} 28. Rxd1 {[%emt 0:00:09]} Rxd1 {[%emt 0:02:03]} 29. Rxf3 {[%emt 0:00:08]} exf3 {[%emt 0:00:04]} 30. Kg3 {[%emt 0:00:09]} Rd3 {[%emt 0:14:55]} 31. Be3 {[%emt 0:05:45]} Bd6+ {[%emt 0:00:06]} 32. Kxf3 {[%emt 0:01:56]} f4 {[%emt 0:00:07]} 33. Ke4 {[%emt 0:00:20]} fxe3 {[%emt 0:00:12]} 34. Kxd3 {[%emt 0:00:04]} exf2 {[%emt 0:00:05]} 35. Ke2 {[%emt 0:00:04]} Bc5 {[%emt 0:00:38]} 36. Bc6 {[%emt 0:00:06]} Kg7 {[%emt 0:01:59]} 37. a4 {[%emt 0:00:06]} Kf6 {[%emt 0:01:53]} 38. a5 {[%emt 0:00:13]} Ke5 {[%emt 0:00:26]} 39. a6 {[%emt 0:00:06]} Kd4 {[%emt 0:01:20]} 40. b4 {[%emt 0:00:49]} Ba7 {[%emt 0:00:14]} 41. c5 {[%emt 0:00:29]} g5 {[%emt 0:02:43]} 42. Bg2 {[%emt 0:00:41]} Ke5 {[%emt 0:01:24]} 43. hxg5 {[%emt 0:00:18]} hxg5 {[%emt 0:00:01]} 44. Kd3 {[%emt 0:00:22]} Ke6 {[%emt 0:04:00]} 45. Kc4 {[%emt 0:00:09]} Kd7 {[%emt 0:00:29]} 46. b5 {[%emt 0:00:05]} Kc7 {[%emt 0:00:10]} 47. Kd5 {[%emt 0:00:05]} g4 {[%emt 0:00:12]} 48. Bf1 {[%emt 0:00:05]} g3 {[%emt 0:00:53]} 49. Bg2 {[%emt 0:00:10]} 1-0